bitfinex/quotes_SOLUSD_20250206
["timestamp","ask_amount","ask_price","bid_price","bid_amount"]
[1738868624842,55.25433472,189.57,189.5,35.37982472]
[1738868625029,35.25433472,189.56,189.5,0.12549]
[1738868625332,35.25433472,189.53,189.49,0.03]
[1738868625844,35.25433472,189.52,189.49,0.03]
[1738868626205,35.78193472,189.52,189.49,0.03]
[1738868626705,20.0,189.53,189.49,35.28433472]
[1738868626907,35.78173472,189.58,189.51,35.25433472]
[1738868627108,35.25433472,189.59,189.52,49.04265325]
[1738868627339,35.25433472,189.59,189.46,18.4734]
[1738868627340,30.0,189.34,189.26,35.25433472]
[1738868627530,5.22,189.39,189.25,8.20142542]
[1738868627841,35.25433472,189.31,189.25,8.20142542]
[1738868628002,35.25433472,189.29,189.25,8.20142542]
[1738868628708,35.25433472,189.27,189.25,8.20142542]
[1738868629411,35.25433472,189.31,189.25,8.20142542]
[1738868629608,35.25433472,189.31,189.24,0.37647]
[1738868629916,35.25433472,189.31,189.24,40.91480472]
[1738868630511,35.25433472,189.31,189.24,5.66047]
[1738868631336,35.25433472,189.26,189.22,5.2846]
[1738868631640,35.25433472,189.25,189.22,5.2846]
[1738868631833,35.25433472,189.26,189.23,0.12549]
[1738868632018,35.25433472,189.25,189.21,0.15549]
[1738868632335,35.25433472,189.25,189.21,0.03]
[1738868632546,35.25433472,189.24,189.21,0.03]
[1738868632703,35.25433472,189.25,189.21,0.03]
[1738868632907,35.25433472,189.23,189.21,0.03]
[1738868633137,35.25433472,189.22,189.21,0.03]
[1738868634018,35.25433472,189.23,189.21,0.03]
[1738868634204,35.25433472,189.22,189.21,0.03]
[1738868634408,35.36779604,189.22,189.21,0.03]
[1738868634646,0.11346132,189.22,189.21,0.03]
[1738868635250,35.36779604,189.22,189.21,0.03]
[1738868636133,0.11346132,189.22,189.21,0.03]
[1738868637453,0.11346132,189.22,189.21,35.78629472]
[1738868637822,0.11346132,189.22,189.21,35.53531472]
[1738868638044,0.11346132,189.22,189.21,0.03]
[1738868639340,35.36779604,189.22,189.21,0.03]
[1738868640636,0.11346132,189.22,189.21,0.03]
[1738868640841,0.11346132,189.22,189.21,35.40982472]
[1738868641028,0.11346132,189.22,189.21,0.03]
[1738868641455,0.11346132,189.22,189.21,0.15549]
[1738868641636,6.132e-05,189.22,189.21,1.32448074]
[1738868641840,2.936e-05,189.23,189.22,13.78831853]
[1738868642135,6.328e-05,189.24,189.23,0.37647]
[1738868642332,6.328e-05,189.24,189.23,14.70610432]
[1738868642557,0.00678579,189.3,189.27,0.12549]
[1738868642856,0.00678579,189.3,189.29,35.63080472]
[1738868643060,0.00678579,189.3,189.29,49.9602445]
[1738868643231,5.432e-05,189.31,189.3,0.50196]
[1738868643430,5.432e-05,189.31,189.3,41.03889472]
[1738868643947,35.25433472,189.47,189.38,0.12549]
[1738868644153,35.25433472,189.47,189.4,35.25433472]
[1738868644352,43.36313964,189.49,189.42,35.25433472]
[1738868644518,8.10880492,189.49,189.41,0.12549]
[1738868644725,35.25433472,189.5,189.43,35.25433472]
[1738868644950,35.25433472,189.51,189.44,35.25433472]
[1738868645127,35.25433472,189.52,189.46,35.25433472]
[1738868645468,35.25433472,189.54,189.47,35.25433472]
[1738868645634,35.25433472,189.55,189.49,35.25433472]
[1738868645836,35.25433472,189.54,189.47,35.25433472]
[1738868646030,35.25433472,189.5,189.44,35.37982472]
[1738868646228,35.25433472,189.51,189.44,40.53283472]
[1738868646443,0.5274,189.58,189.45,0.12549]
[1738868646644,35.25433472,189.54,189.48,35.25433472]
[1738868646850,35.25433472,189.53,189.47,35.25433472]
[1738868647049,35.25433472,189.52,189.45,35.75629472]
[1738868647227,35.25433472,189.54,189.47,35.37982472]
[1738868647427,35.25433472,189.56,189.49,35.25433472]
[1738868647748,35.25433472,189.55,189.48,35.25433472]
[1738868647977,35.25433472,189.57,189.51,35.25433472]
[1738868648125,35.25433472,189.57,189.5,35.25433472]
[1738868648332,35.25433472,189.59,189.53,35.25433472]
[1738868648533,35.31733472,189.61,189.54,35.25433472]
[1738868648732,35.31733472,189.61,189.52,0.12549]
[1738868648733,0.063,189.61,189.55,35.25433472]
[1738868648932,35.25433472,189.58,189.51,35.25433472]
[1738868649345,35.25433472,189.59,189.53,0.12549]
[1738868649540,0.063,189.61,189.55,35.25433472]
[1738868649854,0.063,189.61,189.54,35.25433472]
[1738868650053,0.063,189.61,189.56,35.25433472]
[1738868650371,0.063,189.61,189.55,0.50196]
[1738868650539,0.063,189.61,189.58,35.25433472]
[1738868650865,0.063,189.61,189.51,5.2767]
[1738868651166,35.25433472,189.59,189.52,35.25433472]
[1738868651337,0.063,189.61,189.56,35.25433472]
[1738868651531,0.063,189.57,189.56,35.25433472]
[1738868651733,0.063,189.57,189.52,0.12549]
[1738868652355,0.063,189.57,189.52,35.37982472]
[1738868653061,0.063,189.57,189.53,35.25433472]
[1738868653249,0.063,189.57,189.56,35.37982472]
[1738868653940,0.063,189.57,189.56,35.25433472]
[1738868654136,0.063,189.57,189.55,35.25433472]
[1738868654344,0.16420297,189.57,189.54,35.37982472]
[1738868654635,0.16420297,189.57,189.54,35.25433472]
[1738868654856,0.16420297,189.57,189.55,35.25433472]
[1738868655063,0.16420297,189.57,189.54,35.37982472]
[1738868655468,0.16420297,189.57,189.52,40.53053472]
[1738868655640,0.16420297,189.57,189.53,35.25433472]
[1738868655835,0.16420297,189.57,189.55,35.25433472]
[1738868656070,0.16420297,189.57,189.53,35.37982472]
[1738868656842,0.16420297,189.57,189.54,35.25433472]
[1738868657037,0.16420297,189.57,189.56,35.37982472]
[1738868657257,0.16420297,189.57,189.56,35.50531472]
[1738868657760,0.16420297,189.57,189.56,40.78061472]
[1738868658262,0.16420297,189.57,189.55,35.25433472]
[1738868658472,0.16420297,189.57,189.56,35.25433472]
[1738868658658,0.16420297,189.57,189.56,35.50531472]
[1738868658862,0.16420297,189.57,189.56,35.75629472]
[1738868659246,0.16420297,189.57,189.56,35.50531472]
[1738868659660,0.16420297,189.57,189.56,40.78061472]
[1738868660767,0.16420297,189.57,189.56,40.90610472]
[1738868662175,0.16420297,189.57,189.56,40.65512472]
[1738868662948,0.16420297,189.57,189.56,41.03159472]
[1738868663575,0.16420297,189.57,189.56,0.12549]
[1738868664064,35.41853769,189.57,189.5,40.53133472]
[1738868664272,35.25433472,189.56,189.5,5.277]
[1738868664485,35.25433472,189.54,189.48,40.53163472]
[1738868664667,35.25433472,189.56,189.49,35.63080472]
[1738868665186,0.69170297,189.57,189.49,0.12549]
[1738868665187,35.25433472,189.55,189.49,0.12549]
[1738868665374,0.16420297,189.57,189.51,35.25433472]
[1738868665551,0.16420297,189.57,189.52,5.2764]
[1738868666178,0.16420297,189.57,189.54,35.25433472]
[1738868666362,0.16420297,189.57,189.56,35.63080472]
[1738868666559,0.16420297,189.57,189.56,36.54736163]
[1738868666759,0.16263958,189.61,189.56,49.95921016]
[1738868666984,0.16263958,189.61,189.58,0.12549]
[1738868667152,0.16263958,189.61,189.59,0.37647]
[1738868667353,0.16263958,189.61,189.6,49.95898717]
[1738868667575,0.16263958,189.61,189.6,55.23318717]
[1738868667780,3.958e-05,189.61,189.6,55.23318717]
[1738868668003,0.09117006,189.63,189.62,0.12549]
[1738868668187,0.09117006,189.63,189.62,35.37982472]
[1738868668483,0.113786,189.66,189.63,0.37647]
[1738868668674,0.113786,189.66,189.63,35.63080472]
[1738868668873,0.113786,189.66,189.63,35.75629472]
[1738868669606,0.113786,189.66,189.63,40.90420472]
[1738868670196,0.113786,189.66,189.63,41.82043698]
[1738868670490,0.113786,189.66,189.63,55.23228551]
[1738868670683,0.113786,189.66,189.63,90.48662023]
[1738868671189,0.113786,189.66,189.63,40.90420472]
[1738868671565,0.113786,189.66,189.63,5.52438]
[1738868672063,35.36654208,189.65,189.61,5.2737]
[1738868672284,35.25433472,189.63,189.57,5.275]
[1738868672681,35.36296554,189.64,189.58,0.25098]
[1738868673084,0.10863082,189.64,189.63,35.63080472]
[1738868673267,3.082e-05,189.64,189.63,49.16814325]
[1738868673791,3.082e-05,189.64,189.63,54.44154325]
[1738868674379,9.34e-05,189.64,189.63,90.48648625]
[1738868675270,9.34e-05,189.64,189.63,55.23215153]
[1738868675599,4.216e-05,189.65,189.64,13.91380853]
[1738868675786,0.22711871,189.66,189.64,49.16814325]
[1738868675787,6.087e-05,189.66,189.64,49.16814325]
[1738868675971,6.087e-05,189.66,189.65,49.95861613]
[1738868676389,5.351e-05,189.67,189.66,13.91380853]
[1738868676575,5.351e-05,189.67,189.66,49.16814325]
[1738868677091,5.351e-05,189.67,189.66,35.63080472]
[1738868677891,0.02000001,189.68,189.67,13.91380853]
[1738868678196,0.101325,189.73,189.67,49.5821172]
[1738868678494,0.101325,189.73,189.7,49.04265325]
[1738868679268,1e-08,189.73,189.72,0.12549]
[1738868679469,1e-08,189.73,189.72,85.21273272]
[1738868679993,35.25433472,189.9,189.81,0.12549]
[1738868680190,35.25433472,189.9,189.83,35.25433472]
[1738868680410,35.25433472,189.87,189.8,35.25433472]
[1738868680690,35.25433472,189.86,189.79,35.25433472]
[1738868680875,35.25433472,189.88,189.81,35.25433472]
[1738868681081,35.25433472,189.87,189.8,35.25433472]
[1738868681387,35.25433472,189.82,189.75,35.25433472]
[1738868681584,35.25433472,189.85,189.78,35.25433472]
[1738868681784,35.25433472,189.85,189.78,40.52333472]
[1738868682483,35.25433472,189.83,189.77,0.25098]
[1738868682790,35.25433472,189.78,189.72,1.33435028]
[1738868682970,35.25433472,189.8,189.74,0.37647]
[1738868683166,35.25433472,189.79,189.74,0.25098]
[1738868683367,35.25433472,189.8,189.74,0.25098]
[1738868683991,35.25433472,189.85,189.78,35.25433472]
[1738868684490,35.25433472,189.84,189.77,35.25433472]
[1738868684695,35.25433472,189.87,189.8,35.25433472]
[1738868684991,35.25433472,189.88,189.81,35.25433472]
[1738868685507,35.25433472,189.87,189.8,35.25433472]
[1738868685677,35.25433472,189.89,189.81,35.25433472]
[1738868685885,35.25433472,189.88,189.82,0.12549]
[1738868686198,35.25433472,189.87,189.8,40.52293472]
[1738868686693,35.25433472,189.87,189.81,0.12549]
[1738868686881,35.25433472,189.83,189.76,35.25433472]
[1738868687081,2.0,189.88,189.74,5.2703]
[1738868687082,35.25433472,189.82,189.75,35.25433472]
[1738868687270,35.25433472,189.82,189.76,0.12549]
[1738868687671,35.25433472,189.83,189.76,35.63080472]
[1738868687977,35.25433472,189.86,189.79,40.64852472]
[1738868688174,35.25433472,189.86,189.8,0.25098]
[1738868688387,0.063,189.86,189.8,35.50531472]
[1738868688603,0.063,189.86,189.82,0.12549]
[1738868689121,35.31733472,189.86,189.82,0.12549]
[1738868689274,35.31733472,189.86,189.8,0.37647]
[1738868689470,35.84403472,189.86,189.8,0.37647]
[1738868689778,35.25433472,189.85,189.78,35.25433472]
[1738868689998,35.25433472,189.84,189.77,40.52383472]
[1738868690303,35.25433472,189.84,189.78,0.37647]
[1738868690888,35.25433472,189.81,189.74,35.25433472]
[1738868691201,35.25433472,189.76,189.71,5.2712]
[1738868691385,35.78123472,189.76,189.7,5.2714]
[1738868691587,35.25433472,189.76,189.7,5.2714]
[1738868691988,35.78123472,189.77,189.71,0.12549]
[1738868692186,35.25433472,189.79,189.72,35.25433472]
[1738868692498,35.25433472,189.84,189.77,35.37982472]
[1738868692803,35.78103472,189.85,189.79,0.12549]
[1738868693013,35.31733472,189.86,189.79,35.37982472]
[1738868693195,0.063,189.86,189.8,35.25433472]
[1738868693392,0.063,189.86,189.83,0.12549]
[1738868694202,0.063,189.86,189.81,0.37647]
[1738868694499,0.09771346,189.84,189.83,0.12549]
[1738868694887,0.09771346,189.84,189.83,0.37647]
[1738868695205,0.09771346,189.84,189.83,35.75629472]
[1738868695581,0.09771346,189.84,189.83,54.43594325]
[1738868695818,9.58e-06,189.87,189.85,0.12549]
[1738868695996,9.58e-06,189.87,189.86,69.95774302]
[1738868696613,8.77e-05,189.88,189.87,13.91380853]
[1738868696782,8.77e-05,189.88,189.87,49.16814325]
[1738868697107,8.247e-05,189.89,189.87,84.42247797]
[1738868697316,8.247e-05,189.89,189.88,85.2119699]
[1738868697602,8.247e-05,189.89,189.88,55.22403518]
[1738868698299,3.19e-05,189.92,189.91,33.91380853]
[1738868698510,3.19e-05,189.92,189.91,69.16814325]
[1738868699274,9.804e-05,189.93,189.92,13.91380853]
[1738868699480,9.804e-05,189.93,189.92,49.95742912]
[1738868699698,9.804e-05,189.93,189.92,55.22272912]
[1738868699903,0.063,189.98,189.97,35.75629472]
[1738868700112,0.063,189.98,189.97,36.54552454]
[1738868700878,0.063,189.98,189.97,85.21170779]
[1738868700879,0.0001,189.98,189.97,85.21170779]
[1738868701601,0.0001,189.98,189.97,90.47560779]
[1738868701805,0.063,190.0,189.99,0.50196]
[1738868701806,0.0001,190.0,189.99,0.50196]
[1738868702015,0.0001,190.0,189.99,56.54542017]
[1738868702208,0.0001,190.0,189.99,35.75629472]
[1738868702511,0.0001,190.0,189.99,49.16814325]
[1738868703297,0.0001,190.0,189.99,54.43154325]
[1738868703593,0.0001,190.0,189.99,89.68587797]
[1738868703804,0.0001,190.0,189.99,90.47496328]
[1738868704198,0.0001,190.0,189.99,54.43154325]
[1738868704714,0.0001,190.0,189.99,90.47506327]
[1738868704927,0.063,190.05,190.03,20.50196]
[1738868705134,0.063,190.05,190.04,85.21132929]
[1738868705292,0.0001,190.05,190.04,90.47332929]
[1738868705488,0.5258,190.18,190.04,90.47332929]
[1738868705797,0.5258,190.18,190.13,35.25433472]
[1738868706231,35.25433472,190.17,190.1,35.25433472]
[1738868706517,35.25433472,190.15,190.08,35.25433472]
[1738868706828,36.25433472,190.17,190.1,35.25433472]
[1738868707000,35.25433472,190.13,190.04,5.262]
[1738868707199,0.5259,190.14,190.08,35.25433472]
[1738868707825,35.25433472,190.11,190.04,35.25433472]
[1738868707993,35.25433472,190.09,190.02,35.25433472]
[1738868708406,35.25433472,190.07,190.0,40.51743472]
[1738868708805,0.5258,190.16,190.06,35.25433472]
[1738868709093,0.5258,190.16,190.06,0.12549]
[1738868709292,1.5258,190.16,190.03,5.2623]
[1738868709504,0.063,190.19,190.06,13.91380853]
[1738868709707,0.063,190.19,190.12,0.37647]
[1738868709914,0.063,190.19,190.14,0.12549]
[1738868710294,0.063,190.19,190.16,35.25433472]
[1738868710498,0.063,190.19,190.18,35.25433472]
[1738868710817,0.063,190.19,190.17,35.25433472]
[1738868711006,0.063,190.19,190.18,35.25433472]
[1738868711803,0.063,190.19,190.16,35.25433472]
[1738868712013,0.063,190.19,190.17,35.25433472]
[1738868712199,0.063,190.19,190.18,35.25433472]
[1738868712600,0.04300001,190.22,190.21,20.0]
[1738868712817,0.063,190.31,190.22,0.37647]
[1738868713121,0.063,190.31,190.28,35.25433472]
[1738868713504,0.063,190.31,190.27,35.25433472]
[1738868713704,35.31733472,190.31,190.25,35.25433472]
[1738868713927,35.25433472,190.28,190.21,35.25433472]
[1738868714113,35.25433472,190.27,190.2,40.51183472]
[1738868714312,0.10575885,190.24,190.23,35.37982472]
[1738868714824,0.10575885,190.24,190.23,35.63080472]
[1738868715024,0.10575885,190.24,190.23,36.41899478]
[1738868715327,0.10575885,190.24,190.23,35.37982472]
[1738868715528,0.10575885,190.24,190.23,40.63652472]
[1738868715720,0.10575885,190.24,190.23,40.88750472]
[1738868715907,0.10575885,190.24,190.23,41.01299472]
[1738868716101,0.10575885,190.24,190.23,40.63652472]
[1738868716321,0.10575885,190.24,190.23,41.42469268]
[1738868716527,0.10575885,190.24,190.23,41.67567268]
[1738868716934,0.10575885,190.24,190.23,40.88750472]
[1738868717117,0.10575885,190.24,190.23,40.63652472]
[1738868717330,0.10575885,190.24,190.23,35.37982472]
[1738868718137,0.10575885,190.24,190.22,35.25433472]
[1738868718346,0.10575885,190.24,190.21,35.25433472]
[1738868718747,35.25433472,190.23,190.16,40.51273472]
[1738868719113,35.25433472,190.21,190.14,35.25433472]
[1738868719333,35.25433472,190.22,190.15,35.25433472]
[1738868719638,0.63135885,190.24,190.18,35.25433472]
[1738868720548,35.25433472,190.2,190.13,35.25433472]
[1738868720734,35.25433472,190.19,190.12,40.51383472]
[1738868720936,20.0,190.21,190.15,35.25433472]
[1738868721510,55.3841421,190.24,190.17,35.25433472]
[1738868721726,0.5256,190.23,190.17,35.25433472]
[1738868722210,0.10575885,190.24,190.19,35.25433472]
[1738868722542,0.63135885,190.24,190.19,35.25433472]
[1738868723082,35.25433472,190.22,190.16,35.25433472]
[1738868723212,35.25433472,190.18,190.11,35.25433472]
[1738868723415,13.41184853,190.22,190.1,40.51463472]
[1738868723416,35.25433472,190.17,190.1,40.51463472]
[1738868723725,35.78013472,190.17,190.1,40.51463472]
[1738868723926,35.25433472,190.15,190.08,40.51503472]
[1738868724149,35.25433472,190.15,190.08,35.25433472]
[1738868724367,55.25433472,190.16,190.1,35.25433472]
[1738868724551,20.0,190.16,190.1,35.25433472]
[1738868724864,55.25433472,190.16,190.09,35.25433472]
[1738868725071,35.25433472,190.13,190.06,35.25433472]
[1738868725367,35.25433472,190.12,190.05,35.25433472]
[1738868725572,35.25433472,190.14,190.07,35.25433472]
[1738868725734,35.25433472,190.13,190.06,35.25433472]
[1738868725938,35.25433472,190.13,190.1,0.063]
[1738868726164,35.25433472,190.12,190.1,0.063]
[1738868726463,48.66618325,190.11,190.1,0.063]
[1738868726835,35.25433472,190.04,189.99,0.063]
[1738868727034,30.0,190.09,190.0,35.25433472]
[1738868727035,35.25433472,190.07,190.0,35.25433472]
[1738868727238,35.25433472,190.06,189.99,40.58063472]
[1738868727833,35.25433472,190.04,189.99,0.063]
[1738868728034,35.25433472,190.03,189.99,0.063]
[1738868728265,35.25433472,190.01,189.99,0.063]
[1738868728466,35.25433472,190.0,189.99,0.063]
[1738868729269,78.66618325,190.0,189.99,0.063]
[1738868729563,49.19248325,190.0,189.99,0.063]
[1738868730753,35.78063472,190.0,189.99,0.063]
[1738868730942,0.5263,190.0,189.99,0.063]
[1738868731338,55.78063472,190.0,189.99,0.063]
[1738868731758,99.19248325,190.0,189.99,0.063]
[1738868732273,0.5261,190.05,189.99,35.31733472]
[1738868732471,35.25433472,190.09,190.02,35.25433472]
[1738868732769,4.7,190.1,190.01,35.25433472]
[1738868732770,20.0,190.08,190.01,35.25433472]
[1738868732958,35.78033472,190.09,190.02,35.25433472]
[1738868733155,4.7,190.1,190.04,35.25433472]
[1738868733562,35.25433472,190.13,190.06,35.25433472]
[1738868733872,1.3146,190.16,190.09,35.25433472]
[1738868733873,35.25433472,190.16,190.09,35.25433472]
[1738868734076,35.25433472,190.16,190.1,35.25433472]
[1738868734246,35.25433472,190.18,190.11,35.25433472]
[1738868734454,35.25433472,190.18,190.04,0.9144248]
[1738868734455,0.1137697,190.12,190.08,0.12549]
[1738868734756,0.1137697,190.12,190.09,0.78876212]
[1738868734966,0.1137697,190.12,190.11,35.25433472]
[1738868735469,0.1137697,190.12,190.11,36.16859209]
[1738868736177,0.1137697,190.12,190.11,35.37982472]
[1738868736375,0.1137697,190.12,190.11,36.16858335]
[1738868736978,0.1137697,190.12,190.11,41.35584523]
[1738868737162,0.1137697,190.12,190.11,41.60682523]
[1738868737363,0.1137697,190.12,190.11,41.35584523]
[1738868738089,0.1137697,190.12,190.11,35.97025523]
[1738868738257,0.1137697,190.12,190.11,35.25433472]
[1738868738579,0.1437697,190.12,190.11,36.16869231]
[1738868738875,0.1437697,190.12,190.11,35.25433472]
[1738868739177,0.1437697,190.12,190.11,40.89090472]
[1738868739378,0.1437697,190.12,190.11,40.63992472]
[1738868739953,0.1437697,190.12,190.11,41.01639472]
[1738868740979,0.1437697,190.12,190.11,47.61619472]
[1738868741185,6.97e-05,190.12,190.11,47.61619472]
[1738868741364,6.97e-05,190.12,190.11,48.40472041]
[1738868741795,4.443e-05,190.13,190.12,0.50196]
[1738868741959,0.10009439,190.14,190.12,49.16814325]
[1738868742157,8.016e-05,190.15,190.14,0.50196]
[1738868742382,9.09e-05,190.16,190.14,91.01062944]
[1738868742560,9.09e-05,190.16,190.15,56.41921466]
[1738868743062,9.09e-05,190.16,190.15,61.42732752]
[1738868743269,9.09e-05,190.16,190.15,61.80379752]
[1738868743463,9.09e-05,190.16,190.15,40.51333472]
[1738868743989,9.09e-05,190.16,190.13,35.25433472]
[1738868744678,9.09e-05,190.16,190.15,35.25433472]
[1738868745867,9.09e-05,190.16,190.14,35.25433472]
[1738868746068,9.09e-05,190.16,190.13,35.25433472]
[1738868746580,9.09e-05,190.16,190.14,35.25433472]
[1738868747189,9.09e-05,190.16,190.13,35.25433472]
[1738868747374,9.09e-05,190.16,190.15,35.25433472]
[1738868748071,9.09e-05,190.16,190.15,40.51333472]
[1738868748274,9.09e-05,190.16,190.15,41.42751249]
[1738868749166,9.09e-05,190.16,190.15,40.63882472]
[1738868750617,0.0300909,190.16,190.15,40.63882472]
[1738868750900,0.0300909,190.16,190.14,40.57653472]
[1738868751098,0.0300909,190.16,190.14,0.063]
[1738868751973,35.25433472,190.15,190.14,0.063]
[1738868752284,48.66618325,190.15,190.14,0.063]
[1738868752670,13.41184853,190.15,190.14,0.063]
[1738868753402,20.0,190.15,190.14,0.063]
[1738868753899,0.0300909,190.16,190.14,0.063]
[1738868754415,0.10075492,190.15,190.14,0.063]
[1738868754614,48.76693817,190.15,190.14,0.063]
[1738868755104,50.01791817,190.15,190.14,0.063]
[1738868755397,35.25433472,190.09,190.03,35.25433472]
[1738868755599,55.25433472,190.1,190.03,35.25433472]
[1738868755993,35.25433472,190.07,190.0,35.25433472]
[1738868756181,35.25433472,190.04,189.99,0.063]
[1738868756585,13.41184853,190.05,189.99,0.063]
[1738868756586,35.25433472,190.02,189.99,0.063]
[1738868756798,35.25433472,190.01,189.99,0.063]
[1738868757483,35.25433472,190.0,189.99,0.063]
[1738868758192,48.66618325,190.0,189.99,0.063]
[1738868759313,35.78063472,190.01,189.99,0.063]
[1738868759819,48.66618325,190.02,189.99,0.063]
[1738868760181,20.0,190.0,189.99,0.063]
[1738868760491,20.0,190.0,189.94,0.063]
[1738868760492,20.0,189.96,189.94,0.063]
[1738868760689,48.66618325,189.95,189.94,0.063]
[1738868761006,35.25433472,189.98,189.94,0.063]
[1738868761194,46.2224486,190.15,189.95,35.25433472]
[1738868761195,30.0,190.04,189.95,35.25433472]
[1738868761381,0.5262,190.03,189.94,0.063]
[1738868761581,20.0,190.01,189.94,0.063]
[1738868762009,13.41184853,190.02,189.94,0.063]
[1738868762388,49.19238325,190.02,189.95,35.25433472]
[1738868762710,49.19238325,190.02,189.99,0.063]
[1738868762897,35.25433472,190.01,189.99,0.063]
[1738868763081,55.25433472,190.01,189.99,0.063]
[1738868763489,79.66618325,190.0,189.99,0.063]
[1738868763690,13.41184853,189.96,189.94,0.063]
[1738868764109,48.66618325,189.95,189.94,0.063]
[1738868764409,49.19258325,189.95,189.94,0.063]
[1738868764927,50.31807325,189.95,189.94,0.063]
[1738868765091,35.25433472,189.88,189.81,40.52273472]
[1738868765287,20.0,189.92,189.8,6.0868]
[1738868765288,35.25433472,189.87,189.8,40.55293472]
[1738868765489,35.25433472,189.83,189.8,0.03]
[1738868766300,48.66618325,189.82,189.8,0.03]
[1738868766511,49.19298325,189.81,189.8,0.03]
[1738868767089,79.98431176,189.81,189.8,0.03]
[1738868767308,117.36413648,189.81,189.8,0.03]
[1738868767614,13.41184853,189.76,189.68,35.25433472]
[1738868767917,13.41184853,189.73,189.67,35.25433472]
[1738868768104,48.66618325,189.73,189.67,35.25433472]
[1738868768299,55.78133472,189.75,189.68,35.25433472]
[1738868768500,48.66618325,189.73,189.66,35.25433472]
[1738868768708,35.25433472,189.71,189.65,35.25433472]
[1738868768908,48.66618325,189.73,189.66,35.25433472]
[1738868769214,35.25433472,189.7,189.63,0.03]
[1738868769625,35.25433472,189.7,189.63,35.28433472]
[1738868769830,35.25433472,189.69,189.63,0.03]
[1738868770018,35.25433472,189.66,189.63,0.03]
[1738868770194,48.66618325,189.67,189.63,0.03]
[1738868770400,20.0,189.67,189.64,35.25433472]
[1738868770611,0.5271,189.7,189.64,35.25433472]
[1738868770809,20.0,189.68,189.64,35.25433472]
[1738868771117,20.0,189.68,189.57,0.12549]
[1738868771118,30.0,189.41,189.38,9.28285085]
[1738868771295,30.0,189.41,189.31,100.84396805]
[1738868771296,35.25433472,189.39,189.33,22.89069132]
[1738868771499,35.25433472,189.36,189.33,22.89069132]
[1738868771697,35.25433472,189.34,189.33,22.89069132]
[1738868771898,26.14427042,189.37,189.33,22.89069132]
[1738868772210,1.0,189.47,189.33,22.89069132]
[1738868772211,35.25433472,189.43,189.34,36.25433472]
[1738868772415,35.25433472,189.43,189.35,5.2812]
[1738868772604,26.21352991,189.47,189.39,35.25433472]
[1738868772804,26.21352991,189.47,189.36,0.3974933]
[1738868772805,26.34831292,189.45,189.37,35.25433472]
[1738868773021,26.52959235,189.43,189.35,54.13575041]
[1738868773207,35.25433472,189.44,189.33,5.2816]
[1738868773208,35.25433472,189.38,189.33,5.2816]
[1738868774206,26.52959235,189.43,189.34,0.063]
[1738868774207,13.41184853,189.41,189.34,0.063]
[1738868774407,35.34989461,189.35,189.34,0.063]
[1738868774606,35.34989461,189.35,189.29,74.03027578]
[1738868774909,35.34989461,189.35,189.28,13.39867711]
[1738868774910,35.25433472,189.31,189.28,5.283]
[1738868775310,35.25433472,189.33,189.28,5.283]
[1738868775519,10.51360362,189.3,189.28,5.283]
[1738868776625,10.51360362,189.3,189.26,5.2837]
[1738868776922,35.25433472,189.28,189.22,5.2848]
[1738868777611,35.25433472,189.25,189.22,5.2848]
[1738868777821,35.25433472,189.26,189.18,35.25433472]
[1738868778031,35.25433472,189.31,189.23,35.50531472]
[1738868778236,35.25433472,189.33,189.26,0.25098]
[1738868778531,0.09555989,189.35,189.28,0.25098]
[1738868779030,0.09555989,189.35,189.28,11.69261547]
[1738868779410,35.34989461,189.35,189.28,46.94695019]
[1738868780218,0.09555989,189.35,189.29,35.25433472]
[1738868780398,0.09555989,189.35,189.3,5.2826]
[1738868780598,0.09555989,189.35,189.3,40.53693472]
[1738868780802,0.09555989,189.35,189.31,35.25433472]
[1738868781027,0.09555989,189.35,189.3,40.53693472]
[1738868781207,35.34989461,189.35,189.3,5.2826]
[1738868781742,35.34989461,189.35,189.32,35.25433472]
[1738868781743,0.09555989,189.35,189.32,35.25433472]
[1738868781944,0.09555989,189.35,189.34,35.25433472]
[1738868782107,0.09555989,189.35,189.33,35.25433472]
[1738868782307,0.09555989,189.35,189.32,35.25433472]
[1738868782511,0.09555989,189.35,189.33,5.2817]
[1738868782711,0.09555989,189.35,189.33,40.53603472]
[1738868783017,0.09555989,189.35,189.33,5.2817]
[1738868783716,0.09555989,189.35,189.33,40.53603472]
[1738868784545,5.989e-05,189.35,189.34,35.37982472]
[1738868784708,8.877e-05,189.36,189.34,35.63080472]
[1738868784908,8.877e-05,189.36,189.35,55.37982472]
[1738868785129,8.877e-05,189.36,189.35,20.0]
[1738868785436,8.877e-05,189.36,189.33,5.2817]
[1738868785652,35.25442349,189.36,189.33,5.2817]